[Event "Titled Tuesday Blitz July 11 Late 2023"]
[White "Marchesich, Giovanni"]
[Black "Martinez Ramirez, Lennis"]
[WhiteFideId "2824790"]
[BlackFideId "3509079"]
[WhiteElo "2274"]
[BlackElo "2631"]
[Result "0-1"]
[Round "2"]
[TimeControl "180+2"]
[Date "2023.07.11"]
[WhiteClock "0:02:21"]
[BlackClock "0:02:17"]
[Board "82"]

1. d4 {[%clk 0:03:00]}  Nf6 {[%clk 0:02:58]} 2. Nc3 {[%clk 0:03:01]}  d5 {[%clk 0:02:56]} 3. Bf4 {[%clk 0:03:01]}  c6 {[%clk 0:02:53]} 4. e3 {[%clk 0:02:54]}  Qb6 {[%clk 0:02:52]} 5. a3 {[%clk 0:02:51]}  Bf5 {[%clk 0:02:52]} 6. Nf3 {[%clk 0:02:48]}  Qxb2 {[%clk 0:02:51]} 7. Na4 {[%clk 0:02:42]}  Qxc2 {[%clk 0:02:50]} 8. Qxc2 {[%clk 0:02:41]}  Bxc2 {[%clk 0:02:49]} 9. Nc3 {[%clk 0:02:38]}  Nbd7 {[%clk 0:02:48]} 10. Kd2 {[%clk 0:02:36]}  Bg6 {[%clk 0:02:44]} 11. Nh4 {[%clk 0:02:36]}  e6 {[%clk 0:02:37]} 12. f3 {[%clk 0:02:36]}  b5 {[%clk 0:02:30]} 13. Nxg6 {[%clk 0:02:34]}  hxg6 {[%clk 0:02:30]} 14. e4 {[%clk 0:02:35]}  Nb6 {[%clk 0:02:29]} 15. a4 {[%clk 0:02:33]}  b4 {[%clk 0:02:25]} 16. Nb1 {[%clk 0:02:31]}  dxe4 {[%clk 0:02:25]} 17. a5 {[%clk 0:02:29]}  Nbd5 {[%clk 0:02:25]} 18. Be5 {[%clk 0:02:28]}  e3+ {[%clk 0:02:25]} 19. Kd3 {[%clk 0:02:28]}  Nd7 {[%clk 0:02:18]} 20. Bg3 {[%clk 0:02:27]}  c5 {[%clk 0:02:18]} 21. Be1 {[%clk 0:02:24]}  Rc8 {[%clk 0:02:17]} 22. dxc5 {[%clk 0:02:24]}  Nxc5+ {[%clk 0:02:17]} 23. Ke2 {[%clk 0:02:23]}  Nb3 {[%clk 0:02:17]} 24. Ra2 {[%clk 0:02:21]}  Nc1+ {[%clk 0:02:17]} 0-1


[Site "https://www.chess.com"]

[Event "Titled Tuesday Blitz July 11 Late 2023"]
[White "Grebeniuk, Semen"]
[Black "rionelG"]
[WhiteFideId "14117509"]
[WhiteElo "2630"]
[BlackElo "2258"]
[Result "1-0"]
[Round "2"]
[TimeControl "180+2"]
[Date "2023.07.11"]
[WhiteClock "0:00:03"]
[BlackClock "0:00:00"]
[Board "83"]

1. d4 {[%clk 0:03:00]}  Nf6 {[%clk 0:02:59]} 2. Nf3 {[%clk 0:03:01]}  g6 {[%clk 0:03:00]} 3. Bg5 {[%clk 0:03:02]}  Bg7 {[%clk 0:03:00]} 4. c3 {[%clk 0:03:02]}  O-O {[%clk 0:03:00]} 5. Nbd2 {[%clk 0:03:03]}  h6 {[%clk 0:02:59]} 6. Bh4 {[%clk 0:03:03]}  g5 {[%clk 0:02:59]} 7. Bg3 {[%clk 0:03:03]}  Nh5 {[%clk 0:02:58]} 8. e4 {[%clk 0:02:53]}  d6 {[%clk 0:02:55]} 9. Be2 {[%clk 0:02:44]}  c5 {[%clk 0:02:45]} 10. dxc5 {[%clk 0:02:36]}  Nxg3 {[%clk 0:02:44]} 11. hxg3 {[%clk 0:02:35]}  dxc5 {[%clk 0:02:45]} 12. Qc2 {[%clk 0:02:35]}  Nc6 {[%clk 0:02:43]} 13. a4 {[%clk 0:02:27]}  Qc7 {[%clk 0:02:38]} 14. O-O {[%clk 0:02:26]}  Be6 {[%clk 0:02:30]} 15. Rfe1 {[%clk 0:02:24]}  Rad8 {[%clk 0:02:29]} 16. Bc4 {[%clk 0:02:24]}  Bxc4 {[%clk 0:02:01]} 17. Nxc4 {[%clk 0:02:24]}  Ne5 {[%clk 0:02:01]} 18. Nfxe5 {[%clk 0:02:12]}  Bxe5 {[%clk 0:02:01]} 19. Rad1 {[%clk 0:02:13]}  e6 {[%clk 0:01:54]} 20. Qe2 {[%clk 0:02:11]}  Kg7 {[%clk 0:01:51]} 21. Qh5 {[%clk 0:02:07]}  Rxd1 {[%clk 0:01:44]} 22. Rxd1 {[%clk 0:02:07]}  Bf6 {[%clk 0:01:45]} 23. Ne3 {[%clk 0:01:52]}  Rd8 {[%clk 0:00:38]} 24. Rxd8 {[%clk 0:01:44]}  Qxd8 {[%clk 0:00:39]} 25. Ng4 {[%clk 0:01:43]}  Qh8 {[%clk 0:00:40]} 26. Ne3 {[%clk 0:01:02]}  Qh7 {[%clk 0:00:33]} 27. Qf3 {[%clk 0:00:59]}  Qg6 {[%clk 0:00:29]} 28. Nc4 {[%clk 0:00:57]}  Be7 {[%clk 0:00:29]} 29. g4 {[%clk 0:00:53]}  Qf6 {[%clk 0:00:27]} 30. Qxf6+ {[%clk 0:00:29]}  Bxf6 {[%clk 0:00:25]} 31. f3 {[%clk 0:00:30]}  Bd8 {[%clk 0:00:20]} 32. Kf2 {[%clk 0:00:29]}  Bc7 {[%clk 0:00:21]} 33. Ke3 {[%clk 0:00:28]}  Kg6 {[%clk 0:00:20]} 34. Kd3 {[%clk 0:00:23]}  f5 {[%clk 0:00:20]} 35. Ne3 {[%clk 0:00:17]}  fxg4 {[%clk 0:00:15]} 36. fxg4 {[%clk 0:00:18]}  h5 {[%clk 0:00:14]} 37. Kc4 {[%clk 0:00:17]}  b6 {[%clk 0:00:12]} 38. Kb5 {[%clk 0:00:17]}  Bf4 {[%clk 0:00:12]} 39. Nc4 {[%clk 0:00:12]}  hxg4 {[%clk 0:00:10]} 40. Kc6 {[%clk 0:00:11]}  Kh5 {[%clk 0:00:10]} 41. Kb7 {[%clk 0:00:09]}  Kh4 {[%clk 0:00:11]} 42. Kxa7 {[%clk 0:00:08]}  Kg3 {[%clk 0:00:12]} 43. Kxb6 {[%clk 0:00:07]}  Kxg2 {[%clk 0:00:12]} 44. a5 {[%clk 0:00:06]}  Kf1 {[%clk 0:00:08]} 45. a6 {[%clk 0:00:07]}  g3 {[%clk 0:00:09]} 46. a7 {[%clk 0:00:07]}  g2 {[%clk 0:00:10]} 47. a8=Q {[%clk 0:00:07]}  g1=Q {[%clk 0:00:10]} 48. Qe8 {[%clk 0:00:06]}  e5 {[%clk 0:00:06]} 49. Qe6 {[%clk 0:00:06]}  g4 {[%clk 0:00:06]} 50. b3 {[%clk 0:00:05]}  g3 {[%clk 0:00:06]} 51. Qd5 {[%clk 0:00:05]}  g2 {[%clk 0:00:05]} 52. Qd3+ {[%clk 0:00:06]}  Kf2 {[%clk 0:00:04]} 53. Qc2+ {[%clk 0:00:06]}  Kg3 {[%clk 0:00:04]} 54. Qd3+ {[%clk 0:00:06]}  Kh2 {[%clk 0:00:04]} 55. Qe2 {[%clk 0:00:06]}  Qf1 {[%clk 0:00:04]} 56. Qh5+ {[%clk 0:00:06]}  Kg1 {[%clk 0:00:04]} 57. Qg4 {[%clk 0:00:04]}  Kf2 {[%clk 0:00:03]} 58. Nd6 {[%clk 0:00:04]}  g1=Q {[%clk 0:00:02]} 59. Qe6 {[%clk 0:00:03]}  Qgg2 {[%clk 0:00:01]} 60. Nc4 {[%clk 0:00:04]}  Qxe4 {[%clk 0:00:00]} 61. Qh6 {[%clk 0:00:03]} 1-0


[Site "https://www.chess.com"]

[Event "Titled Tuesday Blitz July 11 Late 2023"]
[White "Schachpanda_Youtube"]
[Black "Kantans, Toms"]
[BlackFideId "11602945"]
[WhiteElo "2223"]
[BlackElo "2623"]
[Result "0-1"]
[Round "2"]
[TimeControl "180+2"]
[Date "2023.07.11"]
[WhiteClock "0:00:00"]
[BlackClock "0:02:09"]
[Board "87"]

1. e4 {[%clk 0:03:00]}  c5 {[%clk 0:02:58]} 2. d4 {[%clk 0:03:01]}  cxd4 {[%clk 0:02:57]} 3. c3 {[%clk 0:03:01]}  Nf6 {[%clk 0:02:57]} 4. e5 {[%clk 0:03:01]}  Nd5 {[%clk 0:02:57]} 5. Qxd4 {[%clk 0:03:01]}  e6 {[%clk 0:02:57]} 6. Nf3 {[%clk 0:03:01]}  Nc6 {[%clk 0:02:57]} 7. Qe4 {[%clk 0:02:57]}  f5 {[%clk 0:02:55]} 8. Qe2 {[%clk 0:02:57]}  Qc7 {[%clk 0:02:52]} 9. c4 {[%clk 0:02:49]}  Bb4+ {[%clk 0:02:50]} 10. Bd2 {[%clk 0:02:44]}  Nf4 {[%clk 0:02:51]} 11. Qe3 {[%clk 0:02:32]}  Bxd2+ {[%clk 0:02:51]} 12. Nbxd2 {[%clk 0:02:25]}  Ng6 {[%clk 0:02:51]} 13. O-O-O {[%clk 0:02:15]}  Ngxe5 {[%clk 0:02:45]} 14. Kb1 {[%clk 0:02:05]}  O-O {[%clk 0:02:44]} 15. Nxe5 {[%clk 0:01:58]}  Nxe5 {[%clk 0:02:44]} 16. f4 {[%clk 0:01:48]}  Ng4 {[%clk 0:02:44]} 17. Qg3 {[%clk 0:01:33]}  b6 {[%clk 0:02:40]} 18. h3 {[%clk 0:01:28]}  Nf6 {[%clk 0:02:39]} 19. Be2 {[%clk 0:01:21]}  Bb7 {[%clk 0:02:39]} 20. Bf3 {[%clk 0:01:21]}  Ne4 {[%clk 0:02:37]} 21. Bxe4 {[%clk 0:01:03]}  fxe4 {[%clk 0:02:38]} 22. Rhe1 {[%clk 0:00:54]}  Qxf4 {[%clk 0:02:33]} 23. Qc3 {[%clk 0:00:44]}  Rac8 {[%clk 0:02:29]} 24. Rf1 {[%clk 0:00:35]}  Qg5 {[%clk 0:02:29]} 25. Rxf8+ {[%clk 0:00:33]}  Rxf8 {[%clk 0:02:28]} 26. Qd4 {[%clk 0:00:31]}  d5 {[%clk 0:02:29]} 27. cxd5 {[%clk 0:00:29]}  exd5 {[%clk 0:02:30]} 28. Rc1 {[%clk 0:00:27]}  Rf7 {[%clk 0:02:24]} 29. Nf1 {[%clk 0:00:18]}  Qxg2 {[%clk 0:02:14]} 30. Ne3 {[%clk 0:00:18]}  Qxh3 {[%clk 0:02:14]} 31. Nxd5 {[%clk 0:00:15]}  Qd3+ {[%clk 0:02:13]} 32. Qxd3 {[%clk 0:00:15]}  exd3 {[%clk 0:02:14]} 33. Nb4 {[%clk 0:00:04]}  h5 {[%clk 0:02:10]} 34. Nxd3 {[%clk 0:00:01]}  Be4 {[%clk 0:02:10]} 35. Kc2 {[%clk 0:00:00]}  Rf3 {[%clk 0:02:09]} 0-1


[Site "https://www.chess.com"]

[Event "Titled Tuesday Blitz July 11 Late 2023"]
[White "Di Berardino, Diego Rafael"]
[Black "Ankerst, Mihael"]
[WhiteFideId "2105446"]
[BlackFideId "14602369"]
[WhiteElo "2620"]
[BlackElo "2218"]
[Result "1-0"]
[Round "2"]
[TimeControl "180+2"]
[Date "2023.07.11"]
[WhiteClock "0:00:04"]
[BlackClock "0:00:00"]
[Board "88"]

1. d4 {[%clk 0:03:00]}  Nf6 {[%clk 0:02:59]} 2. c4 {[%clk 0:03:00]}  g6 {[%clk 0:02:58]} 3. Nc3 {[%clk 0:02:59]}  Bg7 {[%clk 0:02:58]} 4. e4 {[%clk 0:02:57]}  d6 {[%clk 0:02:58]} 5. Be2 {[%clk 0:02:57]}  O-O {[%clk 0:02:57]} 6. Nf3 {[%clk 0:02:57]}  Na6 {[%clk 0:02:57]} 7. O-O {[%clk 0:02:56]}  e5 {[%clk 0:02:57]} 8. Be3 {[%clk 0:02:54]}  c6 {[%clk 0:02:58]} 9. d5 {[%clk 0:02:51]}  Ng4 {[%clk 0:02:58]} 10. Bg5 {[%clk 0:02:50]}  f6 {[%clk 0:02:58]} 11. Bc1 {[%clk 0:02:48]}  f5 {[%clk 0:02:58]} 12. Ng5 {[%clk 0:01:50]}  Nf6 {[%clk 0:02:57]} 13. Bf3 {[%clk 0:01:47]}  f4 {[%clk 0:02:43]} 14. a3 {[%clk 0:01:32]}  h6 {[%clk 0:02:36]} 15. Ne6 {[%clk 0:01:31]}  Bxe6 {[%clk 0:02:36]} 16. dxe6 {[%clk 0:01:32]}  Nc5 {[%clk 0:02:35]} 17. Bg4 {[%clk 0:01:07]}  Qe7 {[%clk 0:02:26]} 18. Bh3 {[%clk 0:01:01]}  Ncxe4 {[%clk 0:02:17]} 19. Nxe4 {[%clk 0:00:58]}  Nxe4 {[%clk 0:02:17]} 20. Qd3 {[%clk 0:00:49]}  Ng5 {[%clk 0:02:17]} 21. Qxg6 {[%clk 0:00:48]}  Rf6 {[%clk 0:02:05]} 22. Qc2 {[%clk 0:00:45]}  Nxh3+ {[%clk 0:02:03]} 23. gxh3 {[%clk 0:00:46]}  Qxe6 {[%clk 0:02:04]} 24. f3 {[%clk 0:00:42]}  Qxh3 {[%clk 0:02:03]} 25. Rf2 {[%clk 0:00:41]}  Qf5 {[%clk 0:01:51]} 26. Qb3 {[%clk 0:00:34]}  Rg6+ {[%clk 0:01:50]} 27. Kh1 {[%clk 0:00:35]}  Kh8 {[%clk 0:01:01]} 28. Bd2 {[%clk 0:00:23]}  Rg8 {[%clk 0:01:00]} 29. Qxb7 {[%clk 0:00:23]}  Bf6 {[%clk 0:00:57]} 30. Qxc6 {[%clk 0:00:20]}  Bh4 {[%clk 0:00:56]} 31. Re2 {[%clk 0:00:20]}  Qg5 {[%clk 0:00:52]} 32. h3 {[%clk 0:00:13]}  Bg3 {[%clk 0:00:37]} 33. Qd7 {[%clk 0:00:08]}  Qh5 {[%clk 0:00:31]} 34. Rf1 {[%clk 0:00:06]}  R6g7 {[%clk 0:00:18]} 35. Qe6 {[%clk 0:00:06]}  Rg6 {[%clk 0:00:19]} 36. Qd7 {[%clk 0:00:06]}  a6 {[%clk 0:00:18]} 37. Bc3 {[%clk 0:00:06]}  R8g7 {[%clk 0:00:08]} 38. Qc8+ {[%clk 0:00:06]}  Kh7 {[%clk 0:00:09]} 39. c5 {[%clk 0:00:06]}  dxc5 {[%clk 0:00:08]} 40. Bxe5 {[%clk 0:00:06]}  Rg5 {[%clk 0:00:05]} 41. Bxg7 {[%clk 0:00:05]}  Rxg7 {[%clk 0:00:05]} 42. Qe6 {[%clk 0:00:05]}  Qg5 {[%clk 0:00:04]} 43. Qe4+ {[%clk 0:00:05]}  Kh8 {[%clk 0:00:04]} 44. Qe8+ {[%clk 0:00:05]}  Kh7 {[%clk 0:00:04]} 45. Qe5 {[%clk 0:00:05]}  Qh4 {[%clk 0:00:04]} 46. Qe6 {[%clk 0:00:05]}  Kh8 {[%clk 0:00:05]} 47. Qc8+ {[%clk 0:00:05]}  Kh7 {[%clk 0:00:05]} 48. Qf5+ {[%clk 0:00:04]}  Rg6 {[%clk 0:00:01]} 49. Qd7+ {[%clk 0:00:04]}  Rg7 {[%clk 0:00:01]} 50. Qf5+ {[%clk 0:00:04]}  Rg6 {[%clk 0:00:01]} 51. Rd2 {[%clk 0:00:05]}  h5 {[%clk 0:00:01]} 52. Rd7+ {[%clk 0:00:04]}  Kh6 {[%clk 0:00:00]} 53. Rc7 {[%clk 0:00:04]} 1-0


[Site "https://www.chess.com"]

[Event "Titled Tuesday Blitz July 11 Late 2023"]
[White "cycygogne"]
[Black "Banzea, Alexandru-Bogdan"]
[BlackFideId "1232622"]
[WhiteElo "2128"]
[BlackElo "2619"]
[Result "0-1"]
[Round "2"]
[TimeControl "180+2"]
[Date "2023.07.11"]
[WhiteClock "0:00:19"]
[BlackClock "0:00:34"]
[Board "89"]

1. e4 {[%clk 0:03:00]}  c6 {[%clk 0:02:53]} 2. d4 {[%clk 0:02:59]}  d5 {[%clk 0:02:47]} 3. Nc3 {[%clk 0:03:00]}  dxe4 {[%clk 0:02:45]} 4. Nxe4 {[%clk 0:03:01]}  Nf6 {[%clk 0:02:44]} 5. Ng3 {[%clk 0:03:01]}  g6 {[%clk 0:02:44]} 6. Nf3 {[%clk 0:02:54]}  Bg7 {[%clk 0:02:44]} 7. c3 {[%clk 0:02:51]}  c5 {[%clk 0:02:43]} 8. Be2 {[%clk 0:02:41]}  cxd4 {[%clk 0:02:43]} 9. cxd4 {[%clk 0:02:39]}  O-O {[%clk 0:02:42]} 10. O-O {[%clk 0:02:39]}  Nc6 {[%clk 0:02:43]} 11. Be3 {[%clk 0:02:30]}  Bg4 {[%clk 0:02:42]} 12. Qd2 {[%clk 0:02:24]}  Qd7 {[%clk 0:02:26]} 13. h3 {[%clk 0:02:16]}  Bxf3 {[%clk 0:02:26]} 14. Bxf3 {[%clk 0:02:17]}  Rad8 {[%clk 0:02:23]} 15. Rfd1 {[%clk 0:02:10]}  Nd5 {[%clk 0:02:15]} 16. Rac1 {[%clk 0:02:09]}  Nxe3 {[%clk 0:01:55]} 17. fxe3 {[%clk 0:02:10]}  Bh6 {[%clk 0:01:47]} 18. Rc3 {[%clk 0:01:41]}  f5 {[%clk 0:01:28]} 19. Ne2 {[%clk 0:01:31]}  Ne5 {[%clk 0:01:18]} 20. Rdc1 {[%clk 0:01:16]}  Nxf3+ {[%clk 0:01:13]} 21. gxf3 {[%clk 0:01:17]}  e5 {[%clk 0:01:13]} 22. Rc7 {[%clk 0:01:12]}  Qd5 {[%clk 0:01:11]} 23. Re7 {[%clk 0:00:53]}  Qxf3 {[%clk 0:00:57]} 24. Rxe5 {[%clk 0:00:52]}  Qxh3 {[%clk 0:00:45]} 25. Rc7 {[%clk 0:00:44]}  Rfe8 {[%clk 0:00:41]} 26. Qa5 {[%clk 0:00:25]}  Bxe3+ {[%clk 0:00:36]} 27. Rxe3 {[%clk 0:00:19]}  Qxe3+ {[%clk 0:00:34]} 0-1


[Site "https://www.chess.com"]

[Event "Titled Tuesday Blitz July 11 Late 2023"]
[White "gordonzyxu"]
[Black "Goldin, Alexander"]
[BlackFideId "2019540"]
[WhiteElo "1930"]
[BlackElo "2619"]
[Result "1-0"]
[Round "2"]
[TimeControl "180+2"]
[Date "2023.07.11"]
[WhiteClock "0:00:46"]
[BlackClock "0:00:00"]
[Board "90"]

1. e4 {[%clk 0:03:00]}  c5 {[%clk 0:02:59]} 2. Nf3 {[%clk 0:03:01]}  Nc6 {[%clk 0:02:59]} 3. Bb5 {[%clk 0:03:01]}  g6 {[%clk 0:02:57]} 4. O-O {[%clk 0:03:00]}  Bg7 {[%clk 0:02:57]} 5. c3 {[%clk 0:03:00]}  Nf6 {[%clk 0:02:56]} 6. Re1 {[%clk 0:02:58]}  O-O {[%clk 0:02:54]} 7. d4 {[%clk 0:02:57]}  cxd4 {[%clk 0:02:51]} 8. cxd4 {[%clk 0:02:58]}  d5 {[%clk 0:02:51]} 9. e5 {[%clk 0:02:59]}  Ne4 {[%clk 0:02:51]} 10. Bxc6 {[%clk 0:02:57]}  bxc6 {[%clk 0:02:51]} 11. Be3 {[%clk 0:02:55]}  Rb8 {[%clk 0:02:37]} 12. Qc1 {[%clk 0:02:55]}  Qb6 {[%clk 0:02:27]} 13. b3 {[%clk 0:02:55]}  f6 {[%clk 0:02:18]} 14. Nbd2 {[%clk 0:02:44]}  Bf5 {[%clk 0:02:15]} 15. Nh4 {[%clk 0:02:34]}  fxe5 {[%clk 0:01:58]} 16. Nxf5 {[%clk 0:02:33]}  gxf5 {[%clk 0:01:44]} 17. Nxe4 {[%clk 0:02:32]}  fxe4 {[%clk 0:01:35]} 18. dxe5 {[%clk 0:02:22]}  d4 {[%clk 0:01:32]} 19. Qc4+ {[%clk 0:02:20]}  Kh8 {[%clk 0:01:22]} 20. Bxd4 {[%clk 0:02:20]}  Qb4 {[%clk 0:00:37]} 21. Qxb4 {[%clk 0:02:13]}  Rxb4 {[%clk 0:00:37]} 22. Bc5 {[%clk 0:02:05]}  Rb7 {[%clk 0:00:17]} 23. Rxe4 {[%clk 0:02:01]}  Rd8 {[%clk 0:00:18]} 24. g3 {[%clk 0:01:47]}  Rd2 {[%clk 0:00:17]} 25. Kf1 {[%clk 0:01:42]}  Rbd7 {[%clk 0:00:16]} 26. a4 {[%clk 0:01:30]}  Rb2 {[%clk 0:00:14]} 27. Re3 {[%clk 0:01:27]}  a6 {[%clk 0:00:11]} 28. Rae1 {[%clk 0:01:22]}  Kg8 {[%clk 0:00:11]} 29. e6 {[%clk 0:01:20]}  Rb7 {[%clk 0:00:10]} 30. Rd3 {[%clk 0:01:16]}  R2xb3 {[%clk 0:00:09]} 31. Rd8+ {[%clk 0:01:16]}  Bf8 {[%clk 0:00:08]} 32. Ra8 {[%clk 0:01:11]}  Rc3 {[%clk 0:00:07]} 33. Be3 {[%clk 0:01:06]}  a5 {[%clk 0:00:03]} 34. Bh6 {[%clk 0:01:06]}  Rf3 {[%clk 0:00:02]} 35. Kg2 {[%clk 0:01:04]}  Rf6 {[%clk 0:00:01]} 36. Bg5 {[%clk 0:00:58]}  Rf5 {[%clk 0:00:01]} 37. Bh6 {[%clk 0:00:57]}  Rf6 {[%clk 0:00:01]} 38. Bd2 {[%clk 0:00:57]}  Rf5 {[%clk 0:00:01]} 39. g4 {[%clk 0:00:48]}  Rb6 {[%clk 0:00:00]} 40. gxf5 {[%clk 0:00:46]} 1-0


[Site "https://www.chess.com"]

[Event "Titled Tuesday Blitz July 11 Late 2023"]
[White "Sarana, Alexey"]
[Black "Tsukerman, Julia"]
[WhiteFideId "24133795"]
[BlackFideId "2621649"]
[WhiteElo "3045"]
[BlackElo "2092"]
[Result "1-0"]
[Round "2"]
[TimeControl "180+2"]
[Date "2023.07.11"]
[WhiteClock "0:02:21"]
[BlackClock "0:00:37"]
[Board "91"]

1. d4 {[%clk 0:03:00]}  d5 {[%clk 0:02:58]} 2. c4 {[%clk 0:03:01]}  e6 {[%clk 0:02:57]} 3. Nc3 {[%clk 0:03:01]}  Be7 {[%clk 0:02:56]} 4. cxd5 {[%clk 0:02:56]}  exd5 {[%clk 0:02:55]} 5. Bf4 {[%clk 0:02:57]}  c6 {[%clk 0:02:54]} 6. e3 {[%clk 0:02:57]}  Nf6 {[%clk 0:02:51]} 7. Bd3 {[%clk 0:02:57]}  Nbd7 {[%clk 0:02:49]} 8. Nf3 {[%clk 0:02:56]}  Nh5 {[%clk 0:02:48]} 9. Be5 {[%clk 0:02:57]}  Bf6 {[%clk 0:02:31]} 10. g4 {[%clk 0:02:55]}  Bxe5 {[%clk 0:02:23]} 11. dxe5 {[%clk 0:02:54]}  Nc5 {[%clk 0:02:13]} 12. gxh5 {[%clk 0:02:53]}  Bg4 {[%clk 0:02:13]} 13. Be2 {[%clk 0:02:53]}  Bxh5 {[%clk 0:02:12]} 14. Rg1 {[%clk 0:02:52]}  O-O {[%clk 0:02:09]} 15. Nd4 {[%clk 0:02:50]}  Bg6 {[%clk 0:02:06]} 16. b4 {[%clk 0:02:44]}  Nd7 {[%clk 0:01:45]} 17. f4 {[%clk 0:02:43]}  Qh4+ {[%clk 0:01:42]} 18. Kd2 {[%clk 0:02:43]}  Be4 {[%clk 0:01:27]} 19. Bf3 {[%clk 0:02:36]}  Qxh2+ {[%clk 0:01:22]} 20. Rg2 {[%clk 0:02:35]}  Qh3 {[%clk 0:01:12]} 21. Nxe4 {[%clk 0:02:35]}  dxe4 {[%clk 0:01:10]} 22. Bxe4 {[%clk 0:02:36]}  f5 {[%clk 0:01:06]} 23. Bf3 {[%clk 0:02:26]}  c5 {[%clk 0:00:37]} 24. Ne6 {[%clk 0:02:21]} 1-0


[Site "https://www.chess.com"]

[Event "Titled Tuesday Blitz July 11 Late 2023"]
[White "Srinath, Rao S.V."]
[Black "Oparin, Grigoriy"]
[WhiteFideId "5028876"]
[BlackFideId "24125890"]
[WhiteElo "2505"]
[BlackElo "2980"]
[Result "0-1"]
[Round "2"]
[TimeControl "180+2"]
[Date "2023.07.11"]
[WhiteClock "0:00:00"]
[BlackClock "0:00:07"]
[Board "92"]

1. e4 {[%clk 0:03:00]}  c6 {[%clk 0:02:55]} 2. d4 {[%clk 0:02:58]}  d5 {[%clk 0:02:56]} 3. f3 {[%clk 0:02:58]}  Qb6 {[%clk 0:02:56]} 4. Nc3 {[%clk 0:02:57]}  e6 {[%clk 0:02:55]} 5. a3 {[%clk 0:02:55]}  Nf6 {[%clk 0:02:54]} 6. e5 {[%clk 0:02:49]}  Nfd7 {[%clk 0:02:54]} 7. f4 {[%clk 0:02:49]}  c5 {[%clk 0:02:54]} 8. Nf3 {[%clk 0:02:49]}  Nc6 {[%clk 0:02:50]} 9. Be3 {[%clk 0:02:49]}  cxd4 {[%clk 0:02:44]} 10. Nxd4 {[%clk 0:02:45]}  Bc5 {[%clk 0:02:42]} 11. Na4 {[%clk 0:02:42]}  Qa5+ {[%clk 0:02:39]} 12. c3 {[%clk 0:02:40]}  Bxd4 {[%clk 0:02:24]} 13. Bxd4 {[%clk 0:02:35]}  Nxd4 {[%clk 0:02:13]} 14. Qxd4 {[%clk 0:02:36]}  O-O {[%clk 0:02:06]} 15. Bd3 {[%clk 0:02:33]}  f6 {[%clk 0:01:40]} 16. O-O {[%clk 0:02:28]}  Qc7 {[%clk 0:01:30]} 17. exf6 {[%clk 0:02:13]}  Rxf6 {[%clk 0:01:31]} 18. c4 {[%clk 0:01:55]}  Nb6 {[%clk 0:01:21]} 19. Nxb6 {[%clk 0:01:53]}  Qxb6 {[%clk 0:01:22]} 20. c5 {[%clk 0:01:52]}  Qc7 {[%clk 0:01:14]} 21. Rae1 {[%clk 0:01:47]}  Bd7 {[%clk 0:01:12]} 22. Re5 {[%clk 0:01:48]}  Raf8 {[%clk 0:01:10]} 23. g3 {[%clk 0:01:41]}  h6 {[%clk 0:01:06]} 24. Rfe1 {[%clk 0:01:38]}  Kh8 {[%clk 0:00:59]} 25. b4 {[%clk 0:01:37]}  a6 {[%clk 0:00:57]} 26. Bc2 {[%clk 0:01:33]}  Kg8 {[%clk 0:00:43]} 27. Qd3 {[%clk 0:01:23]}  b6 {[%clk 0:00:41]} 28. Qh7+ {[%clk 0:01:22]}  Kf7 {[%clk 0:00:41]} 29. Bd1 {[%clk 0:01:10]}  bxc5 {[%clk 0:00:35]} 30. Bh5+ {[%clk 0:01:10]}  Ke7 {[%clk 0:00:35]} 31. Qxg7+ {[%clk 0:01:07]}  Kd8 {[%clk 0:00:36]} 32. bxc5 {[%clk 0:00:31]}  Qxc5+ {[%clk 0:00:37]} 33. Kh1 {[%clk 0:00:30]}  Qxa3 {[%clk 0:00:36]} 34. Rb1 {[%clk 0:00:27]}  Kc7 {[%clk 0:00:29]} 35. Ree1 {[%clk 0:00:23]}  Kd6 {[%clk 0:00:04]} 36. Rec1 {[%clk 0:00:20]}  Qa5 {[%clk 0:00:01]} 37. Qh7 {[%clk 0:00:12]}  d4 {[%clk 0:00:01]} 38. Qc2 {[%clk 0:00:12]}  Qd5+ {[%clk 0:00:02]} 39. Kg1 {[%clk 0:00:12]}  Bc6 {[%clk 0:00:03]} 40. Kf1 {[%clk 0:00:02]}  Qh1+ {[%clk 0:00:02]} 41. Ke2 {[%clk 0:00:03]}  Qg2+ {[%clk 0:00:03]} 42. Kd3 {[%clk 0:00:03]}  Qxc2+ {[%clk 0:00:04]} 43. Rxc2 {[%clk 0:00:03]}  Bb5+ {[%clk 0:00:04]} 44. Kxd4 {[%clk 0:00:02]}  Rf5 {[%clk 0:00:05]} 45. Bf3 {[%clk 0:00:01]}  e5+ {[%clk 0:00:05]} 46. Ke3 {[%clk 0:00:02]}  exf4+ {[%clk 0:00:06]} 47. gxf4 {[%clk 0:00:03]}  Rxf4 {[%clk 0:00:06]} 48. Rd2+ {[%clk 0:00:03]}  Kc7 {[%clk 0:00:06]} 49. Be2 {[%clk 0:00:02]}  R4f5 {[%clk 0:00:06]} 50. Bd3 {[%clk 0:00:02]}  Re5+ {[%clk 0:00:06]} 51. Kd4 {[%clk 0:00:03]}  Rfe8 {[%clk 0:00:06]} 52. Bxb5 {[%clk 0:00:03]}  axb5 {[%clk 0:00:07]} 53. Rc2+ {[%clk 0:00:03]}  Kb6 {[%clk 0:00:07]} 54. Rg2 {[%clk 0:00:03]}  R8e6 {[%clk 0:00:07]} 55. Kd3 {[%clk 0:00:04]}  Rd5+ {[%clk 0:00:08]} 56. Kc3 {[%clk 0:00:04]}  Rc6+ {[%clk 0:00:08]} 57. Kb4 {[%clk 0:00:05]}  Rd4+ {[%clk 0:00:09]} 58. Kb3 {[%clk 0:00:06]}  Rh4 {[%clk 0:00:09]} 59. Rd1 {[%clk 0:00:05]}  Rf6 {[%clk 0:00:09]} 60. Kb2 {[%clk 0:00:05]}  Kc5 {[%clk 0:00:09]} 61. Rd8 {[%clk 0:00:05]}  Kb4 {[%clk 0:00:09]} 62. Rc2 {[%clk 0:00:06]}  Rf3 {[%clk 0:00:09]} 63. Rd5 {[%clk 0:00:05]}  Rfh3 {[%clk 0:00:08]} 64. Re2 {[%clk 0:00:03]}  Rxh2 {[%clk 0:00:08]} 65. Rd4+ {[%clk 0:00:03]}  Rxd4 {[%clk 0:00:07]} 66. Rxh2 {[%clk 0:00:02]}  Rd6 {[%clk 0:00:07]} 67. Rh4+ {[%clk 0:00:03]}  Kc5 {[%clk 0:00:07]} 68. Rh5+ {[%clk 0:00:04]}  Kc4 {[%clk 0:00:07]} 69. Kc2 {[%clk 0:00:04]}  b4 {[%clk 0:00:07]} 70. Rh4+ {[%clk 0:00:04]}  Kb5 {[%clk 0:00:08]} 71. Kb3 {[%clk 0:00:04]}  Rd3+ {[%clk 0:00:06]} 72. Kc2 {[%clk 0:00:04]}  Rd6 {[%clk 0:00:05]} 73. Kb3 {[%clk 0:00:05]}  Kc5 {[%clk 0:00:04]} 74. Rh5+ {[%clk 0:00:04]}  Kd4 {[%clk 0:00:03]} 75. Kxb4 {[%clk 0:00:05]}  Ke4 {[%clk 0:00:02]} 76. Kc5 {[%clk 0:00:05]}  Ra6 {[%clk 0:00:03]} 77. Rh1 {[%clk 0:00:04]}  Kf4 {[%clk 0:00:03]} 78. Kd5 {[%clk 0:00:05]}  Kg4 {[%clk 0:00:02]} 79. Ke4 {[%clk 0:00:05]}  h5 {[%clk 0:00:03]} 80. Rg1+ {[%clk 0:00:05]}  Kh3 {[%clk 0:00:03]} 81. Kf3 {[%clk 0:00:05]}  Rf6+ {[%clk 0:00:03]} 82. Ke3 {[%clk 0:00:04]}  h4 {[%clk 0:00:04]} 83. Rg8 {[%clk 0:00:04]}  Kh2 {[%clk 0:00:04]} 84. Ke2 {[%clk 0:00:05]}  h3 {[%clk 0:00:05]} 85. Ke1 {[%clk 0:00:04]}  Kh1 {[%clk 0:00:05]} 86. Ke2 {[%clk 0:00:05]}  Ra6 {[%clk 0:00:05]} 87. Kf1 {[%clk 0:00:04]}  Ra1+ {[%clk 0:00:05]} 88. Kf2 {[%clk 0:00:04]}  Ra2+ {[%clk 0:00:06]} 89. Kf1 {[%clk 0:00:05]}  Ra7 {[%clk 0:00:06]} 90. Kf2 {[%clk 0:00:04]}  Rf7+ {[%clk 0:00:06]} 91. Ke2 {[%clk 0:00:05]}  Kh2 {[%clk 0:00:06]} 92. Ke1 {[%clk 0:00:05]}  Rf3 {[%clk 0:00:06]} 93. Ke2 {[%clk 0:00:05]}  Rg3 {[%clk 0:00:07]} 94. Rh8 {[%clk 0:00:04]}  Kg2 {[%clk 0:00:07]} 95. Rf8 {[%clk 0:00:00]}  h2 {[%clk 0:00:07]} 0-1


[Site "https://www.chess.com"]